bitfinex/quotes_SOLUSD_20251130
["timestamp","ask_amount","ask_price","bid_price","bid_amount"]
[1764519500264,3.18,139.11,139.1,0.68]
[1764519501062,6.56723874,139.11,139.09,70.56943539]
[1764519501359,3.18,139.11,139.09,70.56943539]
[1764519501539,3.18,139.11,139.1,0.68]
[1764519501739,3.18,139.11,139.1,7.8690726]
[1764519502169,6.56723874,139.11,139.1,7.1890726]
[1764519502463,3.18,139.11,139.1,0.68]
[1764519502641,6.56723874,139.11,139.1,0.68]
[1764519502969,3.18,139.11,139.1,0.68]
[1764519503261,6.56723874,139.11,139.1,0.68]
[1764519505355,3.18,139.11,139.1,7.8690726]
[1764519506464,3.18,139.11,139.1,70.5690726]
[1764519507663,3.38723874,139.12,139.1,70.5690726]
[1764519507861,3.38723874,139.13,139.11,0.72]
[1764519508061,3.18,139.12,139.11,0.72]
[1764519508868,3.38723874,139.13,139.11,0.72]
[1764519509048,3.18,139.12,139.11,0.72]
[1764519510658,6.56723874,139.12,139.1,63.42]
[1764519510853,3.38723874,139.11,139.1,70.6090726]
[1764519511059,6.56723874,139.12,139.11,0.72]
[1764519511373,3.18,139.12,139.11,0.72]
[1764519512572,3.18,139.12,139.11,7.90855581]
[1764519512866,3.38723874,139.13,139.11,7.90855581]
[1764519513097,3.18,139.12,139.11,7.18855581]
[1764519513764,3.38723874,139.13,139.11,7.18855581]
[1764519513970,3.18,139.12,139.11,7.18855581]
[1764519514171,3.18,139.12,139.11,7.90855581]
[1764519514675,6.56723874,139.12,139.09,7.18950949]
[1764519514972,6.56723874,139.12,139.08,7.18993336]
[1764519514973,3.38723874,139.1,139.08,7.18993336]
[1764519515160,3.38723874,139.1,139.08,7.90993336]
[1764519515363,3.38723874,139.1,139.09,0.72]
[1764519515566,3.38723874,139.11,139.09,0.72]
[1764519515754,6.56723874,139.12,139.09,0.72]
[1764519516776,6.56723874,139.12,139.09,7.90913435]
[1764519517151,6.56723874,139.11,139.09,7.90913435]
[1764519517352,3.18,139.1,139.09,7.18913435]
[1764519517966,3.18,139.11,139.09,7.90913435]
[1764519518271,3.18,139.11,139.1,0.72]
[1764519519057,3.18,139.11,139.1,7.9090726]
[1764519522077,3.38723874,139.12,139.1,7.9090726]
[1764519522286,6.56723874,139.12,139.11,0.72]
[1764519522690,3.18,139.12,139.11,0.72]
[1764519523150,6.56723874,139.12,139.11,7.90855581]
[1764519523851,3.38723874,139.12,139.11,7.90855581]
[1764519524055,6.56723874,139.12,139.11,7.90855581]
[1764519525464,6.56723874,139.12,139.1,0.72]
[1764519525769,3.38723874,139.11,139.1,0.72]
[1764519526281,6.56723874,139.12,139.1,0.72]
[1764519526663,168.18723874,139.22,139.11,25.15994535]
[1764519526664,18.16260253,139.18,139.11,25.15994535]
[1764519526865,3.38723874,139.14,139.11,25.15994535]
[1764519527070,3.18,139.13,139.12,0.72]
[1764519527875,3.18,139.13,139.12,7.9080391]
[1764519532071,6.56723874,139.13,139.12,7.9080391]
[1764519532767,6.56723874,139.13,139.12,0.72]
[1764519533482,6.56723874,139.13,139.11,7.18846287]
[1764519533706,3.38723874,139.12,139.11,7.90846287]
[1764519534388,3.38723874,139.12,139.11,7.18846287]
[1764519534883,3.38723874,139.12,139.11,7.90846287]
[1764519535890,3.38723874,139.12,139.11,70.60846287]
[1764519536089,6.56723874,139.13,139.11,70.60846287]
[1764519540290,7.18619378,139.16,139.12,0.65]
[1764519540493,6.56723874,139.15,139.12,0.65]
[1764519541693,6.56723874,139.15,139.12,7.83759291]
[1764519542192,6.56723874,139.15,139.13,0.65]
[1764519543400,3.38723874,139.14,139.12,7.18759291]
[1764519544601,3.38723874,139.13,139.11,7.83833162]
[1764519544897,3.18,139.12,139.11,7.83833162]
[1764519546491,3.38723874,139.13,139.11,7.83833162]
[1764519546698,3.18,139.12,139.11,7.83833162]
[1764519549596,3.18,139.12,139.11,7.18833162]
[1764519549898,5.34896668,139.12,139.11,7.18833162]
[1764519550193,3.18,139.12,139.11,7.18833162]
[1764519550616,3.18,139.12,139.11,7.83833162]
[1764519550792,3.18,139.12,139.11,70.53833162]
[1764519553898,3.18,139.12,139.11,7.83833162]
[1764519554801,2.16896668,139.14,139.11,7.83833162]
[1764519554981,2.16896668,139.14,139.12,7.83790786]
[1764519555298,3.18,139.13,139.12,7.83790786]
[1764519556017,2.16896668,139.14,139.12,7.83790786]
[1764519556180,3.18,139.13,139.12,7.83790786]
[1764519556380,3.18,139.13,139.1,80.67268152]
[1764519556381,3.18,139.13,139.11,7.83842423]
[1764519557502,3.18,139.13,139.12,7.8380391]
[1764519557801,5.34896668,139.13,139.12,7.8380391]
[1764519558001,5.34896668,139.13,139.12,0.65]
[1764519558383,5.54896668,139.13,139.1,69.88896878]
[1764519558717,2.16896668,139.11,139.1,69.88896878]
[1764519559012,2.16896668,139.11,139.1,7.83896878]
[1764519559218,2.16896668,139.12,139.1,7.83896878]
[1764519566810,10.56741517,139.13,139.1,7.83896878]
[1764519567112,5.34896668,139.13,139.1,7.83896878]
[1764519568310,3.16,139.12,139.09,7.18958947]
[1764519568614,3.16,139.12,139.11,0.71]
[1764519569102,3.16,139.12,139.1,0.71]
[1764519569714,3.16,139.12,139.1,7.8988186]
[1764519570602,5.52896668,139.12,139.1,7.1888186]
[1764519571405,5.32896668,139.12,139.09,63.41]
[1764519571609,5.52896668,139.12,139.09,63.41]
[1764519571807,2.36896668,139.11,139.08,7.19007277]
[1764519572000,2.16896668,139.1,139.05,2.16896668]
[1764519572205,3.16,139.09,139.06,0.71]
[1764519573692,3.16,139.09,139.07,7.19062342]
[1764519574504,21.80216021,139.1,139.07,7.90062342]
[1764519574706,3.16,139.08,139.07,7.90062342]
[1764519576823,3.16,139.09,139.07,7.90062342]
[1764519577121,3.16,139.09,139.08,0.71]
[1764519577413,3.16,139.09,139.08,63.41]
[1764519577827,3.16,139.09,139.08,70.60010641]
[1764519578926,3.16,139.09,139.08,63.41]
[1764519579103,3.16,139.09,139.08,62.7]
[1764519579506,3.16,139.09,139.08,63.41]
[1764519580610,3.16,139.09,139.08,0.71]
[1764519583319,21.60060481,139.11,139.08,7.89999613]
[1764519583524,3.16,139.1,139.08,7.89999613]
[1764519583827,3.16,139.1,139.09,0.71]
[1764519584426,3.16,139.1,139.08,7.89999613]
[1764519584624,3.36,139.1,139.07,69.8905549]
[1764519584925,3.36,139.1,139.07,70.6005549]
[1764519585226,2.36896668,139.09,139.07,62.7]
[1764519585524,2.16896668,139.08,139.07,62.7]
[1764519586104,2.36896668,139.08,139.07,62.7]
[1764519586506,2.36896668,139.08,139.05,7.19165767]
[1764519586705,3.16,139.07,139.05,70.60165767]
[1764519587627,2.16896668,139.06,139.03,70.60219396]
[1764519587926,3.16,139.05,139.04,0.71]
[1764519590123,3.16,139.05,139.04,7.90217491]
[1764519590517,3.16,139.05,139.02,65.86]
[1764519590828,3.16,139.05,139.04,0.71]
[1764519595232,3.16,139.05,139.03,7.19246134]
[1764519595434,3.16,139.05,139.03,70.60246134]
[1764519596011,3.16,139.05,139.03,69.89246134]
[1764519596214,3.16,139.05,139.04,0.67]
[1764519599424,3.16,139.05,139.04,7.86217491]
[1764519601929,9.35959329,139.07,139.04,7.86217491]
[1764519602133,3.16,139.05,139.04,7.86217491]
[1764519602744,14.68856878,139.07,139.05,0.67]
[1764519603039,3.16,139.07,139.05,0.67]
[1764519603626,21.83783068,139.07,139.04,21.88074369]
[1764519603839,2.16896668,139.06,139.04,7.19217491]
[1764519604022,18.67783068,139.07,139.04,7.86217491]
[1764519604223,3.18,139.06,139.04,7.86217491]
[1764519604744,3.18,139.05,139.04,7.86217491]
[1764519605241,3.18,139.05,139.03,7.19247802]
[1764519605415,3.18,139.05,139.03,7.86247802]
[1764519605821,17.97268152,139.1,139.04,2.83896668]
[1764519606020,5.34896668,139.09,139.05,0.67]
[1764519606260,26.95268251,139.09,139.05,0.67]
[1764519606443,2.16896668,139.08,139.05,0.67]
[1764519606616,2.16896668,139.07,139.05,0.67]
[1764519606824,3.18,139.06,139.04,7.86204134]
[1764519607564,3.18,139.06,139.04,7.19204134]
[1764519608045,3.18,139.06,139.04,7.86204134]
[1764519609038,3.18,139.06,139.05,0.67]
[1764519609824,28.79376012,139.09,139.05,0.67]
[1764519610053,28.79376012,139.09,139.05,4.06205847]
[1764519610054,3.18,139.08,139.05,4.06205847]
[1764519610350,3.39205847,139.1,139.05,66.76205847]
[1764519610351,37.68265303,139.1,139.05,66.76205847]
[1764519610554,3.18,139.09,139.06,0.67]
[1764519611155,3.18,139.08,139.06,7.86102904]
[1764519611336,17.98173056,139.1,139.07,0.67]
[1764519611532,3.18,139.09,139.07,0.67]
[1764519612619,3.38,139.09,139.06,7.19102904]
[1764519612949,6.57205847,139.09,139.06,7.86102904]
[1764519613946,3.18,139.09,139.06,7.86102904]
[1764519614250,3.18,139.09,139.07,0.67]
[1764519614856,3.18,139.09,139.07,7.86061525]
[1764519615348,3.18,139.09,139.07,7.19061525]
[1764519615648,3.59205847,139.1,139.07,7.86061525]
[1764519615649,3.18,139.08,139.07,7.86061525]
[1764519616648,24.99421868,139.1,139.07,7.86061525]
[1764519616952,3.18,139.09,139.08,0.67]
[1764519617934,3.18,139.09,139.07,70.56061525]
[1764519618191,3.18,139.09,139.08,0.67]
[1764519618452,3.18,139.09,139.07,70.56061525]
[1764519618654,25.19266328,139.11,139.07,70.56061525]
[1764519618957,3.18,139.1,139.07,70.56061525]
[1764519619254,6.57205847,139.1,139.07,70.56061525]
[1764519619855,3.18,139.1,139.07,70.56061525]
[1764519620034,6.57205847,139.1,139.07,70.56061525]
[1764519621138,3.39205847,139.09,139.07,63.37]
[1764519621971,3.39205847,139.09,139.07,62.7]
[1764519622158,3.39205847,139.09,139.07,0.67]
[1764519623281,28.17421868,139.1,139.08,0.69]
[1764519623462,6.57205847,139.1,139.08,0.69]
[1764519624372,6.57205847,139.1,139.07,7.19032567]
[1764519624562,6.57205847,139.1,139.07,7.88032567]
[1764519625367,3.16,139.09,139.08,0.69]
[1764519626274,3.16,139.09,139.08,7.88010641]
[1764519627068,7.18820292,139.12,139.08,7.88010641]
[1764519627246,3.16,139.11,139.09,0.69]
[1764519630772,3.16,139.14,139.12,0.69]
[1764519631646,27.08708216,139.16,139.12,7.87790271]
[1764519631871,3.16,139.15,139.12,7.87790271]
[1764519632241,3.16,139.15,139.11,10.58041103]
[1764519632546,3.16,139.14,139.11,10.58041103]
[1764519632752,3.16,139.14,139.12,0.69]
[1764519632974,19.90092247,139.16,139.12,0.69]
[1764519633266,19.468864,139.15,139.12,7.87789603]
[1764519633474,16.308864,139.16,139.12,11.2699545]
[1764519633659,19.90092247,139.16,139.13,0.69]
[1764519633859,3.16,139.15,139.13,0.69]
[1764519634370,26.88694408,139.16,139.13,0.69]
[1764519634573,3.16,139.15,139.13,0.69]
[1764519635066,26.88694408,139.16,139.13,0.69]
[1764519635257,3.16,139.15,139.13,0.69]
[1764519636076,26.88694408,139.16,139.13,0.69]
[1764519636249,3.16,139.14,139.13,0.69]
[1764519637761,16.308864,139.16,139.13,0.69]
[1764519637956,0.1,139.22,139.15,3.39205847]
[1764519638154,0.1,139.22,139.18,3.39205847]
[1764519638362,3.16,139.21,139.18,3.39205847]
[1764519638562,0.1,139.22,139.19,0.69]
[1764519638769,3.16,139.21,139.19,0.69]
[1764519639151,0.1,139.22,139.19,0.69]
[1764519639345,0.1,139.22,139.21,10.57545046]
[1764519639778,0.1,139.22,139.21,11.5497736]
[1764519640491,0.1,139.22,139.21,8.15771513]
[1764519640718,0.1,139.22,139.21,11.5497736]
[1764519641373,0.1,139.22,139.21,7.87339199]
[1764519642472,0.1,139.22,139.21,7.18339199]
[1764519642694,0.1,139.22,139.21,7.87339199]
[1764519642894,0.1,139.22,139.21,11.26545046]
[1764519645391,0.1,139.22,139.21,7.87339199]
[1764519645912,0.1,139.22,139.19,11.26610779]
[1764519646090,0.1,139.22,139.19,73.27610779]
[1764519646405,0.1,139.22,139.2,0.69]
[1764519648091,0.1,139.22,139.2,7.87390451]
[1764519648601,0.1,139.22,139.2,11.26596298]
[1764519648807,0.1,139.22,139.2,10.57596298]
[1764519648988,0.1,139.22,139.21,0.69]
[1764519649311,0.1,139.22,139.2,10.57596298]
[1764519649516,0.1,139.22,139.2,11.26596298]
[1764519651914,0.1,139.22,139.2,73.96596298]
[1764519652320,0.1,139.22,139.2,70.57390451]
[1764519653110,0.1,139.22,139.2,69.88390451]
[1764519653323,0.1,139.22,139.21,4.08205847]
[1764519654410,0.1,139.22,139.21,11.26545046]
[1764519656898,0.1,139.22,139.21,70.85771513]
[1764519657100,0.1,139.22,139.21,83.05971852]
[1764519657617,0.1,139.22,139.21,85.93627815]
[1764519658511,0.1,139.22,139.21,83.05971852]
[1764519659808,0.1,139.22,139.21,85.9360713]
[1764519660514,0.1,139.22,139.21,83.05971852]
[1764519660820,0.1,139.22,139.21,85.93627815]
[1764519663411,0.1,139.22,139.21,82.54421968]
[1764519663709,0.1,139.23,139.22,78.59282094]
[1764519663914,0.1,139.23,139.22,82.70487941]
[1764519667612,0.1,139.23,139.22,74.17925763]
[1764519667798,0.1,139.23,139.22,73.45925763]
[1764519667994,0.1,139.23,139.22,74.17925763]
[1764519668201,0.1,139.23,139.22,69.78287602]
[1764519668614,0.1,139.23,139.22,70.50287602]
[1764519672014,0.1,139.23,139.22,72.66805658]
[1764519672926,0.1,139.23,139.22,70.50287602]
[1764519673129,0.1,139.23,139.22,72.66805658]
[1764519674026,0.1,139.23,139.22,72.95237972]
[1764519676427,0.1,139.23,139.22,70.78719916]
[1764519676629,0.1,139.23,139.22,72.95237972]
[1764519678027,0.1,139.26,139.25,11.25944862]
[1764519678403,1e-08,139.26,139.25,11.97944862]
[1764519678601,1e-08,139.26,139.25,22.40236772]
[1764519680528,2.16518056,139.34,139.28,0.28432314]
[1764519680737,2.16518056,139.34,139.3,2.16518056]
[1764519680903,10.80994491,139.39,139.29,7.17926627]
[1764519680904,2.16518056,139.35,139.31,2.16518056]
[1764519681107,2.16518056,139.34,139.29,7.17926627]
[1764519681324,2.16518056,139.34,139.3,2.16518056]
[1764519681514,2.16518056,139.34,139.29,9.34444683]
[1764519681718,2.16518056,139.33,139.29,25.12743196]
[1764519681920,7.17617509,139.35,139.28,62.6]
[1764519682122,2.16518056,139.3,139.27,7.17996396]
[1764519682513,2.42518056,139.3,139.27,7.17996396]
[1764519682725,2.16518056,139.3,139.27,7.17996396]
[1764519683944,16.308864,139.34,139.27,7.17996396]
[1764519683945,23.48598574,139.34,139.28,0.96432314]
[1764519684252,2.16518056,139.31,139.27,25.13070712]
[1764519684615,2.16518056,139.32,139.27,27.29588768]
[1764519685238,7.43740129,139.33,139.27,27.97588768]
[1764519685441,2.16518056,139.32,139.27,27.97588768]
[1764519686018,9.60258185,139.33,139.27,27.97588768]
[1764519686221,0.26,139.33,139.28,2.16518056]
[1764519686418,2.42518056,139.33,139.28,2.16518056]
[1764519687126,2.42518056,139.33,139.27,27.97588768]
[1764519687643,2.16518056,139.32,139.27,25.81070712]
[1764519688124,0.26,139.33,139.27,25.81070712]
[1764519688436,2.16518056,139.32,139.27,25.81070712]
[1764519688653,0.26,139.33,139.27,25.13070712]
[1764519688654,2.16518056,139.31,139.27,25.13070712]
[1764519689846,7.43743451,139.33,139.27,17.95074316]
[1764519690051,2.16518056,139.31,139.27,17.95074316]
[1764519690638,2.16518056,139.31,139.27,18.66074316]
[1764519690937,2.16518056,139.31,139.27,7.89029726]
[1764519691246,0.26,139.33,139.27,7.89029726]
[1764519691548,16.308864,139.33,139.28,0.71]
[1764519691744,2.16518056,139.31,139.27,7.18029726]
[1764519691953,2.42518056,139.31,139.27,7.18029726]
[1764519692324,2.16518056,139.31,139.27,7.89029726]
[1764519692544,2.42518056,139.31,139.27,7.89029726]
[1764519693039,2.42518056,139.31,139.27,7.18029726]
[1764519693348,2.42518056,139.3,139.27,69.78029726]
[1764519693727,2.16518056,139.3,139.27,69.78029726]
[1764519695050,2.16518056,139.3,139.27,70.49029726]
[1764519696441,2.42518056,139.29,139.27,7.18029726]
[1764519696647,2.16518056,139.28,139.26,7.18070154]
[1764519697028,5.58518056,139.27,139.23,7.18236012]
[1764519697343,2.16518056,139.25,139.22,7.89270001]
[1764519697850,2.42518056,139.25,139.22,7.18270001]
[1764519698052,2.42518056,139.24,139.21,7.18337608]
[1764519698558,2.16518056,139.23,139.21,7.18337608]
[1764519698929,0.26,139.24,139.21,7.18337608]
[1764519698930,2.42518056,139.24,139.21,7.18337608]
[1764519699128,0.26,139.24,139.2,0.71]
[1764519699425,2.16518056,139.24,139.2,7.89369533]
[1764519700122,2.16518056,139.24,139.21,0.71]
[1764519700633,7.18107576,139.26,139.21,7.89298246]
[1764519700838,2.16518056,139.24,139.21,7.89298246]
[1764519702559,3.42,139.25,139.21,7.89298246]
[1764519702760,2.16518056,139.24,139.22,0.71]
[1764519703259,2.16518056,139.25,139.22,0.71]
[1764519704552,2.16518056,139.24,139.22,0.71]
[1764519704741,2.16518056,139.24,139.19,25.14453887]
[1764519704942,2.16518056,139.24,139.21,0.71]
[1764519705143,2.16518056,139.24,139.21,63.31]
[1764519705859,2.16518056,139.22,139.21,62.6]
[1764519706440,16.308864,139.27,139.21,0.71]
[1764519706640,5.34518056,139.28,139.22,0.71]
[1764519706839,2.16518056,139.26,139.23,7.18236012]
[1764519707256,2.16518056,139.26,139.24,0.71]
[1764519708042,2.16518056,139.26,139.23,7.89236012]
[1764519708677,16.568864,139.27,139.23,7.89236012]
[1764519709377,16.308864,139.27,139.23,7.18236012]
[1764519709557,18.47404456,139.27,139.24,7.89178177]
[1764519709947,18.47404456,139.27,139.25,0.71]
[1764519710378,18.47404456,139.27,139.24,7.18178177]
[1764519710550,18.47404456,139.27,139.24,7.89178177]
[1764519710745,21.65404456,139.27,139.24,0.71]
[1764519710950,2.16518056,139.26,139.23,0.71]
[1764519711368,2.16518056,139.25,139.22,7.18287602]
[1764519711684,2.16518056,139.23,139.21,7.1832777]
[1764519711972,0.26,139.26,139.21,69.7832777]
[1764519712147,2.16518056,139.23,139.21,70.4932777]
[1764519712647,2.16518056,139.24,139.21,70.4932777]
[1764519713459,2.16518056,139.24,139.21,69.7832777]
[1764519713660,2.16518056,139.24,139.22,0.71]
[1764519713866,5.34518056,139.25,139.22,7.89287581]
[1764519714057,2.16518056,139.24,139.22,0.71]
[1764519714377,2.16518056,139.23,139.21,62.6]
[1764519714579,2.16518056,139.24,139.21,70.49322596]
[1764519715260,2.16518056,139.24,139.22,0.71]
[1764519716080,2.16518056,139.24,139.21,69.78322596]
[1764519716253,2.16518056,139.24,139.21,70.48322596]
[1764519719281,2.16518056,139.24,139.22,0.7]
[1764519719467,2.16518056,139.24,139.22,7.88282817]
[1764519721467,2.16518056,139.24,139.22,0.7]
[1764519722178,2.16518056,139.24,139.2,7.88390804]
[1764519722382,2.16518056,139.24,139.21,7.88305938]
[1764519722788,2.16518056,139.23,139.21,7.18305938]
[1764519723390,2.16518056,139.23,139.21,7.88305938]
[1764519723997,2.16518056,139.24,139.21,7.88305938]
[1764519724366,23.7495678,139.27,139.22,0.7]
[1764519724570,2.16518056,139.24,139.22,0.7]
[1764519725971,2.16518056,139.24,139.22,7.88266277]
[1764519726597,2.16518056,139.25,139.22,7.88266277]
[1764519727582,2.42518056,139.25,139.22,7.88266277]
[1764519727897,2.16518056,139.24,139.22,7.88266277]
[1764519728671,2.16518056,139.24,139.21,25.14187198]
[1764519728971,2.16518056,139.24,139.22,0.7]
[1764519729894,2.16518056,139.25,139.22,0.7]
[1764519730273,2.42518056,139.25,139.22,0.7]
[1764519730492,3.64375792,139.25,139.22,0.7]
[1764519731900,3.38375792,139.25,139.22,63.3]
[1764519732901,16.308864,139.27,139.22,62.6]
[1764519733079,0.28432314,139.32,139.23,0.7]
[1764519733080,0.26,139.3,139.23,0.7]
[1764519733281,6.56375792,139.29,139.23,4.08375792]
[1764519733691,22.87262192,139.29,139.24,0.7]
[1764519733880,6.56375792,139.29,139.24,0.7]
[1764519734193,22.87262192,139.29,139.24,0.7]
[1764519734393,30.05220353,139.29,139.24,0.7]
[1764519734586,30.05220353,139.29,139.24,7.88183979]
[1764519734794,30.31220353,139.29,139.24,7.88183979]
[1764519735092,3.18,139.28,139.25,0.7]
[1764519735485,6.56375792,139.28,139.25,0.7]
[1764519735784,13.74358293,139.28,139.25,0.7]
[1764519735978,3.38375792,139.27,139.24,7.88183979]
[1764519736185,3.38375792,139.27,139.25,0.7]
[1764519736485,3.38375792,139.27,139.24,7.88183979]
[1764519736895,3.38375792,139.27,139.23,7.18236012]
[1764519737097,6.56375792,139.27,139.23,7.18236012]
[1764519737296,6.56375792,139.27,139.24,0.7]
[1764519738207,6.56375792,139.27,139.24,7.88175133]
[1764519738577,6.56375792,139.27,139.25,0.7]
[1764519739202,6.56375792,139.27,139.22,17.95719005]
[1764519739504,6.56375792,139.27,139.24,0.7]
[1764519739802,13.74413872,139.27,139.22,0.7]
[1764519740000,3.38375792,139.25,139.23,0.7]
[1764519740207,3.38375792,139.26,139.23,0.7]
[1764519740811,3.38375792,139.26,139.23,63.3]
[1764519741302,3.38375792,139.26,139.23,70.48206065]
[1764519742183,3.38375792,139.26,139.24,0.7]
[1764519743901,14.00413872,139.27,139.24,0.7]
[1764519744195,3.38375792,139.26,139.24,0.7]
[1764519745491,13.74413872,139.27,139.24,0.7]
[1764519745690,3.38375792,139.26,139.23,70.45206065]
[1764519746308,3.38375792,139.26,139.24,0.67]
[1764519746610,0.26,139.25,139.23,69.78206065]
[1764519746815,19.468864,139.24,139.21,7.85300511]
[1764519747014,3.38375792,139.23,139.21,7.85300511]
[1764519747402,19.468864,139.24,139.21,7.18300511]
[1764519747603,19.468864,139.24,139.21,7.85300511]
[1764519747809,22.85262192,139.24,139.22,0.67]
[1764519748400,3.16,139.23,139.22,0.67]
[1764519749004,3.16,139.23,139.2,70.45371436]
[1764519749202,10.56561375,139.24,139.21,0.67]
[1764519749399,3.16,139.23,139.21,0.67]
[1764519749719,7.17978173,139.28,139.22,3.38375792]
[1764519749928,21.33195432,139.29,139.24,3.38375792]
[1764519749929,6.56375792,139.29,139.24,3.38375792]
[1764519750332,6.56375792,139.29,139.25,0.67]
[1764519750638,3.38375792,139.3,139.25,0.67]
[1764519750798,3.18,139.29,139.25,4.05375792]
[1764519751217,3.18,139.29,139.26,0.67]
[1764519751825,3.18,139.29,139.26,7.85053529]
[1764519752014,3.18,139.29,139.27,0.67]
[1764519754431,23.74717389,139.31,139.27,0.67]
[1764519754625,3.38375792,139.3,139.27,0.67]
[1764519754926,3.18,139.29,139.27,0.67]
[1764519756897,7.18236012,139.32,139.3,16.308864]
[1764519757116,1.99999999,139.41,139.31,3.38375792]
[1764519757117,3.38375792,139.38,139.31,3.38375792]
[1764519757441,19.488864,139.37,139.32,3.38375792]
[1764519757642,22.87262192,139.37,139.32,4.05375792]
[1764519757815,19.488864,139.37,139.33,0.67]
[1764519758216,3.18,139.37,139.33,7.84687937]
[1764519758641,10.35524638,139.37,139.34,0.67]
[1764519758946,13.7390043,139.37,139.33,0.67]
[1764519759114,3.38375792,139.35,139.3,4.05375792]
[1764519759314,3.18,139.35,139.32,3.38375792]
[1764519759512,3.18,139.35,139.31,0.67]
[1764519759723,3.18,139.35,139.31,4.05375792]
[1764519760216,3.18,139.35,139.32,0.67]
[1764519761136,16.568864,139.38,139.34,3.38375792]
[1764519761342,7.16948666,139.48,139.39,0.28432314]
[1764519761641,16.308864,139.47,139.42,3.38375792]
[1764519762141,19.69262192,139.47,139.43,0.67]
[1764519762321,26.86267228,139.47,139.43,0.67]
[1764519763128,7.17005036,139.47,139.43,4.05375792]
[1764519763310,28.81537425,139.49,139.44,3.38375792]
[1764519763510,0.1,139.49,139.48,3.38375792]
[1764519763917,0.1,139.49,139.48,4.05375792]
[1764519764234,0.1,139.49,139.48,0.67]
[1764519764434,3.28,139.49,139.45,11.22438948]
[1764519764607,3.28,139.49,139.45,7.17063156]
[1764519764931,6.66375792,139.49,139.46,0.67]
[1764519765431,13.83279435,139.49,139.46,0.67]
[1764519766135,3.84,139.48,139.45,7.17063156]
[1764519766333,3.18,139.48,139.45,7.84063156]
[1764519768435,3.18,139.47,139.45,7.84063156]
[1764519770126,3.18,139.47,139.45,0.67]
[1764519770327,6.56375792,139.47,139.43,7.84204355]
[1764519770521,6.56375792,139.47,139.43,7.17204355]
[1764519770727,7.22375792,139.47,139.43,7.84204355]
[1764519770942,6.56375792,139.47,139.43,7.17204355]
[1764519771134,6.56375792,139.47,139.44,0.67]
[1764519771316,9.35224805,139.49,139.44,0.67]
[1764519771515,9.35224805,139.49,139.44,4.05375792]
[1764519771516,3.18,139.48,139.44,4.05375792]
[1764519771718,3.18,139.48,139.45,7.17102904]
[1764519771916,3.18,139.48,139.45,7.84102904]
[1764519772229,3.18,139.48,139.46,0.67]
[1764519772814,3.18,139.47,139.46,0.67]
[1764519773916,3.18,139.47,139.41,32.93225927]
[1764519774241,6.56375792,139.47,139.43,0.67]
[1764519774428,15.19813739,139.49,139.43,0.67]
[1764519774632,3.18,139.46,139.43,0.67]
[1764519775974,3.18,139.46,139.43,7.84175915]
[1764519776175,3.18,139.46,139.44,0.68]
[1764519777174,3.18,139.46,139.44,7.85151628]
[1764519777682,3.18,139.46,139.44,0.68]
[1764519778672,3.18,139.46,139.44,7.85130241]
[1764519779172,3.18,139.46,139.44,0.68]
[1764519779861,3.18,139.45,139.44,7.85153922]
[1764519780482,3.18,139.45,139.38,129.51880892]
[1764519780483,4.09375792,139.45,139.38,3.38375792]
[1764519780785,6.56375792,139.44,139.41,0.68]
[1764519781359,3.18,139.44,139.41,0.68]
[1764519781586,6.56375792,139.44,139.41,0.68]
[1764519781964,6.56375792,139.44,139.41,7.85303415]
[1764519782166,6.56375792,139.44,139.41,0.68]
[1764519782369,4.09375792,139.43,139.4,7.17353958]
[1764519782568,4.09375792,139.43,139.39,0.68]
[1764519782569,3.38375792,139.41,139.39,7.17397091]
[1764519782872,3.18,139.4,139.39,7.17397091]
[1764519783272,3.18,139.4,139.39,7.85397091]
[1764519784486,8.53952947,139.44,139.39,7.85397091]
[1764519784664,3.38375792,139.42,139.39,7.85397091]
[1764519785493,3.38375792,139.42,139.39,25.78926038]